[Event "Minior-SM 2025"]
[Site "Uppsala, Sweden"]
[Date "2025.07.01"]
[Round "3.2"]
[White "Dahlin, Emil"]
[Black "Modig, Ville"]
[Result "1-0"]
[TimeControl "90 min for 40 move + 30 min with an increment of 30 sec starting move 1"]
[WhiteFideId "1771035"]
[BlackFideId "1777858"]
[WhiteElo "1657"]
[BlackElo "1585"]

1. e4 {[%clk 01:30:57]} {[%emt 00:00:03]} e5 {[%clk 01:30:52]} {[%emt
00:00:09]} 2. Nf3 {[%clk 01:31:21]} {[%emt 00:00:05]} Nc6 {[%clk 01:31:18]}
{[%emt 00:00:05]} 3. Bc4 {[%clk 01:31:38]} {[%emt 00:00:12]} Nf6 {[%clk
01:31:37]} {[%emt 00:00:11]} 4. d3 {[%clk 01:31:49]} {[%emt 00:00:19]} Bc5
{[%clk 01:31:49]} {[%emt 00:00:18]} 5. c3 {[%clk 01:31:47]} {[%emt 00:00:32]}
d6 {[%clk 01:31:52]} {[%emt 00:00:28]} 6. O-O {[%clk 01:31:26]} {[%emt
00:00:50]} Bg4 {[%clk 01:31:56]} {[%emt 00:00:26]} 7. Nbd2 {[%clk 01:31:24]}
{[%emt 00:00:32]} O-O {[%clk 01:32:05]} {[%emt 00:00:21]} 8. b4 {[%clk
01:31:14]} {[%emt 00:00:39]} Bb6 {[%clk 01:32:24]} {[%emt 00:00:12]} 9. a4
{[%clk 01:30:19]} {[%emt 00:01:24]} a5 {[%clk 01:32:15]} {[%emt 00:00:39]} 10.
b5 {[%clk 01:27:21]} {[%emt 00:03:28]} Ne7 {[%clk 01:32:20]} {[%emt 00:00:26]}
11. Re1 {[%clk 01:24:09]} {[%emt 00:03:42]} Ng6 {[%clk 01:31:23]} {[%emt
00:01:27]} 12. Nf1 {[%clk 01:22:18]} {[%emt 00:02:20]} Qd7 {[%clk 01:29:47]}
{[%emt 00:02:06]} 13. h3 {[%clk 01:18:58]} {[%emt 00:03:50]} Be6 {[%clk
01:28:50]} {[%emt 00:01:27]} 14. Ba2 {[%clk 01:09:40]} {[%emt 00:09:48]} h6
{[%clk 01:28:30]} {[%emt 00:00:50]} 15. d4 {[%clk 01:04:23]} {[%emt 00:05:47]}
Bxa2 {[%clk 01:27:34]} 16. Rxa2 {[%clk 01:02:49]} {[%emt 00:03:31]} Rfe8 {[%clk
01:26:57]} {[%emt 00:01:07]} 17. d5 {[%clk 00:58:46]} {[%emt 00:04:33]} Rac8
{[%clk 01:26:13]} {[%emt 00:01:14]} 18. Rb2 {[%clk 00:56:38]} {[%emt 00:02:37]}
Qd8 {[%clk 01:24:54]} {[%emt 00:01:48]} 19. c4 {[%clk 00:53:14]} {[%emt
00:03:56]} Nd7 {[%clk 01:23:12]} {[%emt 00:02:12]} 20. Ng3 {[%clk 00:45:13]}
{[%emt 00:08:30]} Bc5 {[%clk 01:22:11]} {[%emt 00:01:32]} 21. Nf5 {[%clk
00:42:03]} {[%emt 00:03:39]} Nb6 {[%clk 01:21:51]} {[%emt 00:00:50]} 22. Qc2
{[%clk 00:40:25]} {[%emt 00:02:08]} Ne7 {[%clk 01:19:45]} {[%emt 00:02:36]} 23.
Nxe7+ {[%clk 00:39:11]} {[%emt 00:01:45]} Qxe7 {[%clk 01:19:42]} {[%emt
00:00:33]} 24. Be3 {[%clk 00:37:35]} {[%emt 00:02:05]} Bb4 {[%clk 01:17:57]}
{[%emt 00:02:16]} 25. Bd2 {[%clk 00:36:39]} {[%emt 00:01:26]} Bc5 {[%clk
01:15:04]} {[%emt 00:03:23]} 26. Bxa5 {[%clk 00:33:57]} {[%emt 00:03:12]} Ra8
{[%clk 01:14:49]} {[%emt 00:00:45]} 27. Bxb6 {[%clk 00:34:00]} {[%emt
00:00:27]} Bxb6 {[%clk 01:15:02]} {[%emt 00:00:17]} 28. Ra1 {[%clk 00:32:51]}
{[%emt 00:01:38]} Rf8 {[%clk 01:14:18]} {[%emt 00:01:15]} 29. Rba2 {[%clk
00:30:56]} {[%emt 00:02:25]} f5 {[%clk 01:12:44]} {[%emt 00:02:04]} 30. a5
{[%clk 00:27:39]} {[%emt 00:03:46]} Bc5 {[%clk 01:12:50]} {[%emt 00:00:25]} 31.
exf5 {[%clk 00:24:38]} {[%emt 00:03:30]} e4 {[%clk 01:12:24]} {[%emt 00:00:56]}
32. Re1 {[%clk 00:23:50]} {[%emt 00:01:18]} Rxf5 {[%clk 01:10:24]} {[%emt
00:02:30]} 33. Rxe4 {[%clk 00:22:41]} {[%emt 00:01:39]} Qf6 {[%clk 01:08:53]}
{[%emt 00:02:01]} 34. Re6 {[%clk 00:22:21]} {[%emt 00:00:51]} Qf8 {[%clk
01:08:33]} {[%emt 00:00:50]} 35. a6 {[%clk 00:19:52]} {[%emt 00:02:59]} b6
{[%clk 01:06:55]} {[%emt 00:02:08]} 36. Qe2 {[%clk 00:18:55]} {[%emt 00:01:26]}
Rf7 {[%clk 01:06:57]} {[%emt 00:00:28]} 37. Ra1 {[%clk 00:17:11]} {[%emt
00:02:15]} Bb4 {[%clk 01:06:24]} {[%emt 00:01:03]} 38. Rb1 {[%clk 00:17:09]}
{[%emt 00:00:32]} Bc3 {[%clk 01:05:02]} {[%emt 00:01:50]} 39. Rb3 {[%clk
00:16:20]} {[%emt 00:01:21]} Bf6 {[%clk 01:03:48]} {[%emt 00:01:43]} 40. Rbe3
{[%clk 00:15:52]} {[%emt 00:00:58]} Be5 {[%clk 01:03:32]} {[%emt 00:00:46]} 41.
Nxe5 {[%clk 00:15:15]} {[%emt 00:01:08]} dxe5 {[%clk 01:03:03]} {[%emt
00:00:59]} 42. R6xe5 {[%clk 00:14:32]} {[%emt 00:01:13]} Qb4 {[%emt 00:01:24]}
43. Re8+ {[%clk 00:14:19]} Rf8 {[%clk 01:02:25]} {[%emt 00:00:55]} 44. Rxa8
{[%clk 00:13:15]} {[%emt 00:01:36]} Rxa8 {[%clk 01:02:22]} {[%emt 00:00:33]} 45.
Re8+ {[%clk 00:13:12]} {[%emt 00:00:33]} Rxe8 {[%clk 01:02:49]} {[%emt
00:00:03]} 46. Qxe8+ {[%clk 00:13:27]} {[%emt 00:00:13]} Kh7 {[%clk 01:03:00]}
{[%emt 00:00:17]} 47. Qe4+ {[%clk 00:13:43]} {[%emt 00:00:17]} g6 {[%clk
01:03:10]} {[%emt 00:00:20]} 48. d6 {[%clk 00:08:24]} {[%emt 00:05:49]} c6
{[%clk 01:00:57]} {[%emt 00:02:44]} 49. a7 {[%clk 00:07:43]} {[%emt 00:01:11]}
Qa3 {[%clk 01:01:14]} {[%emt 00:00:13]} 50. d7 {[%clk 00:05:26]} {[%emt
00:02:47]} 1-0

[Event "Minior-SM 2025"]
[Site "Uppsala, Sweden"]
[Date "2025.07.01"]
[Round "3.3"]
[White "Lang Sohl, Benjamin"]
[Black "Leon, David"]
[Result "1/2-1/2"]
[TimeControl "90 min for 40 move + 30 min with an increment of 30 sec starting move 1"]
[WhiteFideId "1790250"]
[BlackFideId "1785338"]
[WhiteElo "1552"]
[BlackElo "1734"]

1. e4 {[%clk 01:30:58]} {[%emt 00:00:01]} e6 {[%clk 01:30:53]} {[%emt
00:00:07]} 2. d4 {[%clk 01:31:22]} {[%emt 00:00:07]} d5 {[%clk 01:31:16]}
{[%emt 00:00:06]} 3. Nc3 {[%clk 01:31:36]} {[%emt 00:00:15]} dxe4 {[%clk
01:30:58]} {[%emt 00:00:48]} 4. Nxe4 {[%clk 01:31:47]} {[%emt 00:00:19]} Bd7
{[%clk 01:30:42]} {[%emt 00:00:47]} 5. Nf3 {[%clk 01:31:38]} {[%emt 00:00:39]}
Bc6 {[%clk 01:30:34]} {[%emt 00:00:38]} 6. Bd3 {[%clk 01:31:35]} {[%emt
00:00:33]} Nd7 {[%clk 01:29:45]} {[%emt 00:01:19]} 7. O-O {[%clk 01:30:46]}
{[%emt 00:01:19]} Ngf6 {[%clk 01:28:27]} {[%emt 00:01:48]} 8. Bg5 {[%clk
01:26:59]} {[%emt 00:04:17]} Be7 {[%clk 01:28:25]} {[%emt 00:00:32]} 9. Nxf6+
{[%clk 01:25:48]} {[%emt 00:01:41]} Bxf6 {[%clk 01:27:29]} {[%emt 00:01:25]} 10.
Bxf6 {[%clk 01:25:50]} {[%emt 00:00:29]} Qxf6 {[%clk 01:26:57]} {[%emt
00:01:01]} 11. Be2 {[%clk 01:24:59]} {[%emt 00:01:23]} O-O-O {[%clk 01:23:40]}
{[%emt 00:03:45]} 12. c3 {[%clk 01:13:53]} {[%emt 00:11:37]} g5 {[%clk
01:12:18]} {[%emt 00:11:51]} 13. Nd2 {[%clk 01:06:23]} {[%emt 00:08:00]} h5
{[%clk 01:02:55]} {[%emt 00:09:53]} 14. b4 {[%clk 01:04:45]} {[%emt 00:02:09]}
Nb6 {[%clk 00:50:29]} {[%emt 00:12:56]} 15. b5 {[%clk 01:02:38]} {[%emt
00:02:37]} Bd7 {[%clk 00:48:42]} {[%emt 00:02:16]} 16. a4 {[%clk 00:59:31]}
{[%emt 00:03:38]} Nd5 {[%clk 00:46:52]} {[%emt 00:02:20]} 17. Rc1 {[%clk
00:56:19]} {[%emt 00:03:42]} e5 {[%clk 00:39:22]} {[%emt 00:07:59]} 18. Ne4
{[%clk 00:54:02]} {[%emt 00:02:48]} Qf4 {[%clk 00:33:46]} {[%emt 00:06:05]} 19.
Bd3 {[%clk 00:52:08]} {[%emt 00:02:25]} Bg4 {[%clk 00:22:44]} {[%emt 00:11:31]}
20. Qc2 {[%clk 00:47:58]} {[%emt 00:04:40]} Rhg8 {[%clk 00:22:05]} {[%emt
00:01:10]} 21. Rfe1 {[%clk 00:45:47]} {[%emt 00:02:41]} 1/2-1/2

[Event "Minior-SM 2025"]
[Site "Uppsala, Sweden"]
[Date "2025.07.01"]
[Round "3.4"]
[White "Hjalte, Eric"]
[Black "Bardhan, Sayak Raj"]
[Result "0-1"]
[TimeControl "90 min for 40 move + 30 min with an increment of 30 sec starting move 1"]
[WhiteFideId "1780344"]
[BlackFideId "1771850"]
[WhiteElo "1512"]
[BlackElo "1658"]

1. e4 {[%clk 01:29:36]} {[%emt 00:01:22]} c6 {[%clk 01:30:31]} {[%emt
00:00:19]} 2. d4 {[%clk 01:27:55]} {[%emt 00:02:21]} d5 {[%clk 01:30:53]}
{[%emt 00:00:08]} 3. Nc3 {[%clk 01:28:17]} {[%emt 00:00:09]} dxe4 {[%clk
01:31:16]} {[%emt 00:00:07]} 4. Nxe4 {[%clk 01:28:34]} {[%emt 00:00:13]} Bf5
{[%clk 01:31:40]} {[%emt 00:00:05]} 5. Ng3 {[%clk 01:28:51]} {[%emt 00:00:14]}
Bg6 {[%clk 01:31:58]} {[%emt 00:00:12]} 6. h4 {[%clk 01:29:10]} {[%emt
00:00:11]} h6 {[%clk 01:32:21]} {[%emt 00:00:07]} 7. Nf3 {[%clk 01:29:19]}
{[%emt 00:00:22]} Nd7 {[%clk 01:32:43]} {[%emt 00:00:07]} 8. Bc4 {[%clk
01:29:12]} {[%emt 00:00:37]} e6 {[%clk 01:32:32]} {[%emt 00:00:41]} 9. Bf4
{[%clk 01:29:05]} {[%emt 00:00:36]} Ngf6 {[%clk 01:30:21]} {[%emt 00:02:42]} 10.
Qd2 {[%clk 01:25:46]} {[%emt 00:03:47]} Nb6 {[%clk 01:27:40]} {[%emt 00:03:13]}
11. Bb3 {[%clk 01:25:44]} {[%emt 00:00:32]} Nbd5 {[%clk 01:24:05]} {[%emt
00:04:04]} 12. Ne5 {[%clk 01:22:26]} {[%emt 00:03:47]} Bh7 {[%clk 01:23:33]}
{[%emt 00:01:03]} 13. a3 {[%clk 01:21:03]} {[%emt 00:01:52]} Be7 {[%clk
01:19:30]} {[%emt 00:04:32]} 14. O-O-O {[%clk 01:15:29]} {[%emt 00:06:05]} Nxf4
{[%clk 01:09:06]} {[%emt 00:10:55]} 15. Qxf4 {[%clk 01:15:09]} {[%emt
00:00:51]} O-O {[%clk 01:07:58]} {[%emt 00:01:38]} 16. Ne2 {[%clk 01:14:13]}
{[%emt 00:01:23]} a5 {[%emt 00:05:03]} 17. g4 {[%clk 01:08:25]} {[%emt
00:06:15]} Nd5 {[%clk 00:53:26]} {[%emt 00:10:34]} 18. Bxd5 {[%clk 01:07:42]}
{[%emt 00:01:13]} Qxd5 {[%clk 00:48:13]} {[%emt 00:05:43]} 19. Nc3 {[%clk
01:07:32]} {[%emt 00:00:38]} Qd8 {[%clk 00:47:46]} {[%emt 00:00:59]} 20. Qh2
{[%clk 01:05:42]} {[%emt 00:02:20]} f6 {[%clk 00:38:27]} {[%emt 00:09:49]} 21.
Nd3 {[%clk 01:01:13]} {[%emt 00:04:58]} b5 {[%clk 00:28:46]} {[%emt 00:10:12]}
22. f4 {[%clk 00:59:23]} {[%emt 00:02:19]} b4 {[%clk 00:27:32]} {[%emt
00:01:45]} 23. axb4 {[%clk 00:59:06]} {[%emt 00:00:46]} axb4 {[%clk 00:27:55]}
{[%emt 00:00:08]} 24. Ne2 {[%clk 00:57:22]} {[%emt 00:02:10]} b3 {[%clk
00:21:49]} {[%emt 00:06:41]} 25. cxb3 {[%clk 00:52:47]} {[%emt 00:05:03]} Qb6
{[%clk 00:14:31]} {[%emt 00:07:49]} 26. Kd2 {[%clk 00:51:38]} {[%emt 00:01:29]}
Bxd3 {[%clk 00:12:48]} {[%emt 00:02:23]} 27. Kxd3 {[%clk 00:51:48]} {[%emt
00:00:19]} Qxb3+ {[%clk 00:13:13]} {[%emt 00:00:05]} 28. Nc3 {[%clk 00:51:40]}
{[%emt 00:00:39]} e5 {[%clk 00:12:36]} {[%emt 00:01:08]} 29. Qc2 {[%clk
00:40:51]} {[%emt 00:11:14]} Qb6 {[%clk 00:11:23]} {[%emt 00:01:45]} 30. Ne2
{[%clk 00:36:01]} {[%emt 00:05:18]} exd4 {[%emt 00:01:44]} 31. Nxd4 {[%clk
00:35:32]} {[%emt 00:00:57]} Rad8 {[%clk 00:09:52]} {[%emt 00:00:53]} 32. Ke4
{[%clk 00:34:59]} {[%emt 00:01:00]} Bc5 {[%clk 00:09:29]} {[%emt 00:00:56]} 33.
Qb3+ {[%clk 00:33:17]} {[%emt 00:02:06]} Qxb3 {[%clk 00:09:32]} {[%emt
00:00:33]} 34. Nxb3 {[%clk 00:33:32]} {[%emt 00:00:14]} Rfe8+ {[%clk 00:07:45]}
{[%emt 00:02:17]} 35. Kf5 {[%clk 00:33:21]} {[%emt 00:00:39]} Kf7 {[%clk
00:05:14]} {[%emt 00:03:04]} 36. g5 {[%clk 00:32:33]} {[%emt 00:01:18]} g6+
{[%clk 00:05:09]} {[%emt 00:00:36]} 37. Kg4 {[%clk 00:32:02]} {[%emt 00:01:00]}
h5+ {[%clk 00:05:17]} {[%emt 00:00:22]} 38. Kg3 {[%clk 00:31:28]} {[%emt
00:01:03]} Rxd1 {[%clk 00:05:43]} {[%emt 00:00:05]} 39. Rxd1 {[%clk 00:31:32]}
{[%emt 00:00:25]} Re3+ {[%clk 00:06:10]} {[%emt 00:00:04]} 40. Kg2 {[%clk
00:31:33]} {[%emt 00:00:27]} Rxb3 {[%clk 00:06:37]} {[%emt 00:00:05]} 41. Rd7+
{[%clk 00:31:43]} {[%emt 00:00:20]} Be7 {[%clk 00:06:59]} {[%emt 00:00:07]} 42.
gxf6 {[%clk 00:31:30]} {[%emt 00:00:44]} Rxb2+ {[%clk 00:07:15]} {[%emt
00:00:14]} 43. Kf3 {[%clk 00:31:40]} {[%emt 00:00:20]} Kxf6 {[%clk 00:07:37]}
{[%emt 00:00:09]} 44. Rc7 {[%clk 00:31:46]} {[%emt 00:00:23]} c5 {[%clk
00:06:56]} {[%emt 00:01:10]} 45. Rc6+ {[%clk 00:31:35]} {[%emt 00:00:41]} Kf7
{[%clk 00:07:10]} {[%emt 00:00:14]} 46. Ke4 {[%clk 00:31:19]} {[%emt 00:00:47]}
Rh2 {[%clk 00:05:08]} {[%emt 00:02:31]} 47. f5 {[%clk 00:30:54]} {[%emt
00:00:26]} Rxh4+ {[%clk 00:05:02]} {[%emt 00:01:07]} 48. Ke5 {[%clk 00:31:00]}
{[%emt 00:00:24]} gxf5 {[%clk 00:05:11]} {[%emt 00:00:21]} 49. Kxf5 {[%clk
00:30:52]} {[%emt 00:00:38]} Rd4 {[%clk 00:04:01]} {[%emt 00:01:37]} 50. Rf6+
{[%clk 00:31:00]} {[%emt 00:00:25]} Ke8 {[%clk 00:03:43]} {[%emt 00:00:47]} 51.
Rh6 {[%clk 00:30:50]} {[%emt 00:00:39]} Kd7 {[%clk 00:03:59]} {[%emt 00:00:15]}
52. Ra6 {[%clk 00:29:51]} {[%emt 00:01:30]} Rd5+ {[%clk 00:01:42]} {[%emt
00:02:47]} 53. Ke4 {[%clk 00:29:56]} {[%emt 00:00:25]} Rd6 {[%clk 00:02:02]}
{[%emt 00:00:09]} 54. Ra7+ {[%clk 00:30:04]} {[%emt 00:00:23]} Ke6 {[%clk
00:02:10]} {[%emt 00:00:22]} 55. Rc7 {[%clk 00:30:00]} {[%emt 00:00:34]} Kf7
{[%clk 00:01:46]} {[%emt 00:00:52]} 56. Rxc5 {[%clk 00:29:39]} {[%emt
00:00:53]} Re6+ {[%clk 00:02:04]} {[%emt 00:00:13]} 57. Re5 {[%clk 00:29:50]}
{[%emt 00:00:18]} Rh6 {[%clk 00:01:58]} {[%emt 00:00:34]} 58. Rf5+ {[%clk
00:29:28]} {[%emt 00:00:54]} Kg7 {[%clk 00:01:45]} {[%emt 00:00:40]} 59. Rf3
{[%clk 00:29:24]} {[%emt 00:00:34]} Rg6 {[%clk 00:01:15]} {[%emt 00:01:03]} 60.
Rh3 {[%clk 00:29:01]} {[%emt 00:00:51]} Kh6 {[%clk 00:01:41]} {[%emt 00:00:05]}
61. Kf3 {[%clk 00:27:24]} {[%emt 00:02:07]} h4 {[%clk 00:01:50]} {[%emt
00:00:20]} 62. Rh2 {[%clk 00:27:21]} {[%emt 00:00:34]} Kh5 {[%clk 00:00:44]}
{[%emt 00:01:37]} 63. Rh1 {[%clk 00:26:44]} {[%emt 00:01:07]} Rg3+ {[%clk
00:30:30]} {[%emt 00:00:43]} 64. Kf2 {[%clk 00:56:55]} {[%emt 00:00:19]} Kg4
{[%clk 00:30:46]} {[%emt 00:00:15]} 65. Kf1 {[%clk 00:56:24]} {[%emt 00:01:00]}
Bc5 {[%clk 00:30:22]} {[%emt 00:00:48]} 66. Rh2 {[%clk 00:55:38]} {[%emt
00:01:23]} h3 {[%clk 00:28:53]} {[%emt 00:02:00]} 67. Ke1 {[%clk 00:55:26]}
{[%emt 00:00:41]} Rg2 {[%clk 00:28:48]} {[%emt 00:00:34]} 68. Rh1 {[%clk
00:55:41]} {[%emt 00:00:15]} h2 {[%clk 00:28:08]} {[%emt 00:01:11]} 0-1

[Event "Minior-SM 2025"]
[Site "Uppsala, Sweden"]
[Date "2025.07.02"]
[Round "4.1"]
[White "Andreasson, Leo"]
[Black "Dahlin, Emil"]
[Result "1-0"]
[TimeControl "90 min for 40 move + 30 min with an increment of 30 sec starting move 1"]
[WhiteFideId "1768980"]
[BlackFideId "1771035"]
[WhiteElo "1636"]
[BlackElo "1657"]

1. c4 {[%clk 01:30:57]} {[%emt 00:00:03]} f5 {[%clk 01:30:49]} {[%emt
00:00:11]} 2. Nc3 {[%clk 01:30:48]} {[%emt 00:00:39]} Nf6 {[%clk 01:31:05]}
{[%emt 00:00:14]} 3. g3 {[%clk 01:30:46]} {[%emt 00:00:33]} g6 {[%clk
01:30:33]} {[%emt 00:01:01]} 4. Bg2 {[%clk 01:30:50]} {[%emt 00:00:26]} Bg7
{[%clk 01:30:42]} {[%emt 00:00:21]} 5. e3 {[%clk 01:28:51]} {[%emt 00:02:29]}
O-O {[%clk 01:28:13]} {[%emt 00:02:58]} 6. Nge2 {[%clk 01:28:48]} {[%emt
00:00:34]} e5 {[%clk 01:25:14]} {[%emt 00:03:29]} 7. d4 {[%clk 01:26:28]}
{[%emt 00:02:50]} e4 {[%clk 01:16:43]} {[%emt 00:09:00]} 8. O-O {[%clk
01:14:21]} {[%emt 00:12:38]} c6 {[%clk 01:09:56]} {[%emt 00:07:17]} 9. Qb3
{[%clk 01:07:17]} {[%emt 00:07:35]} Qb6 {[%clk 01:05:38]} {[%emt 00:04:47]} 10.
Qxb6 {[%clk 00:56:06]} {[%emt 00:11:42]} axb6 {[%clk 01:05:52]} {[%emt
00:00:16]} 11. d5 {[%clk 00:51:23]} {[%emt 00:05:12]} d6 {[%clk 00:57:33]}
{[%emt 00:08:49]} 12. Rd1 {[%clk 00:47:06]} {[%emt 00:04:48]} Rd8 {[%clk
00:52:08]} {[%emt 00:05:54]} 13. Nd4 {[%clk 00:41:32]} {[%emt 00:06:04]} Ng4
{[%clk 00:44:17]} {[%emt 00:08:21]} 14. Bf1 {[%clk 00:40:06]} {[%emt 00:01:57]}
Ne5 {[%clk 00:41:07]} {[%emt 00:03:39]} 15. Be2 {[%clk 00:40:12]} {[%emt
00:00:24]} Kf7 {[%clk 00:33:57]} {[%emt 00:07:40]} 16. f4 {[%clk 00:35:49]}
{[%emt 00:04:53]} exf3 {[%clk 00:31:24]} {[%emt 00:03:03]} 17. Nxf3 {[%clk
00:35:39]} {[%emt 00:00:40]} h6 {[%clk 00:27:22]} {[%emt 00:04:32]} 18. Nd4
{[%clk 00:27:27]} {[%emt 00:08:43]} Ke7 {[%clk 00:20:37]} {[%emt 00:07:14]} 19.
Kg2 {[%clk 00:20:30]} {[%emt 00:07:28]} Rh8 {[%clk 00:19:33]} {[%emt 00:01:33]}
20. Nf3 {[%clk 00:19:04]} {[%emt 00:01:56]} g5 {[%clk 00:17:02]} {[%emt
00:03:01]} 21. Nxe5 {[%clk 00:18:46]} {[%emt 00:00:48]} Bxe5 {[%clk 00:17:10]}
{[%emt 00:00:22]} 22. h3 {[%clk 00:17:20]} {[%emt 00:01:56]} h5 {[%clk
00:15:02]} {[%emt 00:02:38]} 23. Rf1 {[%clk 00:14:25]} {[%emt 00:03:25]} h4
{[%clk 00:13:42]} {[%emt 00:01:50]} 24. e4 {[%clk 00:13:46]} {[%emt 00:01:09]}
Kf6 {[%clk 00:11:03]} {[%emt 00:03:09]} 25. exf5 {[%clk 00:13:17]} {[%emt
00:00:59]} Bxc3 {[%clk 00:08:58]} {[%emt 00:02:35]} 26. bxc3 {[%clk 00:12:58]}
{[%emt 00:00:49]} hxg3 {[%clk 00:09:08]} {[%emt 00:00:19]} 27. Kxg3 {[%clk
00:11:59]} {[%emt 00:01:30]} Re8 {[%clk 00:07:45]} {[%emt 00:01:53]} 28. Rf2
{[%clk 00:08:35]} {[%emt 00:03:54]} Nd7 {[%clk 00:06:38]} {[%emt 00:01:37]} 29.
dxc6 {[%clk 00:07:43]} {[%emt 00:01:23]} bxc6 {[%clk 00:07:00]} {[%emt
00:00:07]} 30. Bf3 {[%clk 00:07:35]} {[%emt 00:00:38]} Ra4 {[%clk 00:05:11]}
{[%emt 00:02:19]} 31. Bxc6 {[%clk 00:05:44]} {[%emt 00:02:20]} Rxc4 {[%clk
00:05:23]} {[%emt 00:00:19]} 32. Bf3 {[%clk 00:05:25]} {[%emt 00:00:50]} Ne5
{[%clk 00:04:50]} {[%emt 00:01:02]} 33. Rb1 {[%clk 00:04:45]} {[%emt 00:01:10]}
Nxf3 {[%clk 00:02:32]} {[%emt 00:02:48]} 34. Rxf3 {[%clk 00:04:52]} {[%emt
00:00:23]} Rc6 {[%clk 00:02:35]} {[%emt 00:00:27]} 35. Be3 {[%clk 00:03:28]}
{[%emt 00:01:53]} Bxf5 {[%clk 00:02:04]} {[%emt 00:01:00]} 36. Bd4+ {[%clk
00:01:44]} {[%emt 00:02:14]} Kg6 {[%clk 00:02:06]} {[%emt 00:00:29]} 37. Rxb6
{[%clk 00:01:47]} {[%emt 00:00:27]} Rxb6 {[%clk 00:02:01]} {[%emt 00:00:35]} 38.
Bxb6 {[%clk 00:02:11]} {[%emt 00:00:05]} Ra8 {[%clk 00:01:52]} {[%emt
00:00:40]} 39. Rf2 {[%clk 00:01:19]} {[%emt 00:01:22]} Ra3 {[%clk 00:01:56]}
{[%emt 00:00:26]} 40. Bd4 {[%clk 00:01:37]} {[%emt 00:00:12]} d5 {[%clk
00:00:49]} {[%emt 00:01:36]} 41. Rb2 {[%clk 00:00:31]} {[%emt 00:01:36]} Be6
{[%clk 00:00:35]} {[%emt 00:00:45]} 42. h4 {[%clk 00:08:15]} {[%emt 00:22:46]}
gxh4+ {[%clk 00:27:34]} {[%emt 00:03:31]} 43. Kxh4 {[%clk 00:08:28]} {[%emt
00:00:16]} Bf5 {[%clk 00:26:27]} {[%emt 00:01:37]} 44. Rb6+ {[%clk 00:07:49]}
{[%emt 00:01:09]} Kf7 {[%clk 00:26:06]} {[%emt 00:00:51]} 45. Rf6+ {[%clk
00:07:37]} {[%emt 00:00:43]} Ke7 {[%clk 00:25:02]} {[%emt 00:01:33]} 46. Rxf5
{[%clk 00:07:59]} {[%emt 00:00:09]} Rxa2 {[%clk 00:22:09]} {[%emt 00:03:22]} 47.
Rxd5 {[%clk 00:07:21]} {[%emt 00:01:08]} Rc2 {[%clk 00:20:16]} {[%emt
00:02:23]} 48. Kg4 {[%clk 00:07:14]} {[%emt 00:00:38]} Ke6 {[%clk 00:20:18]}
{[%emt 00:00:27]} 49. Rc5 {[%clk 00:06:55]} {[%emt 00:00:49]} Kd6 {[%clk
00:19:59]} {[%emt 00:00:49]} 50. Kf4 {[%clk 00:07:10]} {[%emt 00:00:16]} Re2
{[%clk 00:19:26]} {[%emt 00:01:02]} 51. Kf3 {[%clk 00:06:41]} {[%emt 00:01:00]}
Re1 {[%clk 00:19:18]} {[%emt 00:00:36]} 52. Kf2 {[%clk 00:06:56]} {[%emt
00:00:17]} Re4 {[%clk 00:19:09]} {[%emt 00:00:38]} 53. Rh5 {[%clk 00:07:06]}
{[%emt 00:00:20]} Kc6 {[%clk 00:18:36]} {[%emt 00:01:03]} 54. Rh3 {[%clk
00:07:18]} {[%emt 00:00:18]} Kd5 {[%clk 00:18:27]} {[%emt 00:00:39]} 55. Re3
{[%clk 00:06:49]} {[%emt 00:01:00]} Rh4 {[%clk 00:17:50]} {[%emt 00:01:06]} 56.
Ke2 {[%clk 00:06:24]} {[%emt 00:00:55]} Rh2+ {[%clk 00:17:44]} {[%emt
00:00:35]} 57. Kd3 {[%clk 00:06:46]} {[%emt 00:00:10]} Rh4 {[%clk 00:16:23]}
{[%emt 00:01:51]} 58. Re5+ {[%clk 00:06:52]} {[%emt 00:00:24]} Kd6 {[%clk
00:15:54]} {[%emt 00:00:57]} 59. Re4 {[%clk 00:06:31]} {[%emt 00:00:53]} Rh7
{[%clk 00:14:40]} {[%emt 00:01:44]} 60. Kc4 {[%clk 00:06:32]} {[%emt 00:00:29]}
Rc7+ {[%clk 00:14:47]} {[%emt 00:00:23]} 61. Kb5 {[%clk 00:06:50]} {[%emt
00:00:12]} Rb7+ {[%clk 00:14:01]} {[%emt 00:01:15]} 62. Bb6 {[%clk 00:07:00]}
{[%emt 00:00:20]} Rh7 {[%clk 00:13:50]} {[%emt 00:00:41]} 63. c4 {[%clk
00:06:15]} {[%emt 00:01:16]} Rh1 {[%clk 00:13:56]} {[%emt 00:00:24]} 64. c5+
{[%clk 00:06:30]} {[%emt 00:00:15]} Kd5 {[%clk 00:13:55]} {[%emt 00:00:30]} 65.
Re7 {[%clk 00:06:03]} {[%emt 00:00:57]} Rf1 {[%clk 00:13:42]} {[%emt 00:00:44]}
66. Ka6 {[%clk 00:06:08]} {[%emt 00:00:24]} Ra1+ {[%clk 00:11:50]} {[%emt
00:02:22]} 67. Kb7 {[%clk 00:06:22]} {[%emt 00:00:17]} Rc1 {[%clk 00:11:20]}
{[%emt 00:01:00]} 68. Re2 {[%clk 00:06:09]} {[%emt 00:00:42]} Rc3 {[%clk
00:10:56]} {[%emt 00:00:54]} 69. Rd2+ {[%clk 00:06:26]} {[%emt 00:00:14]} Ke6
{[%clk 00:10:22]} {[%emt 00:01:03]} 70. c6 {[%emt 00:00:57]} 1-0